[Event "Titled Tuesday Blitz November 07 Late 2023"]
[White "Krzyzanowski, Marcin"]
[Black "Duda, Jan-Krzysztof"]
[WhiteFideId "1132199"]
[BlackFideId "1170546"]
[WhiteElo "2759"]
[BlackElo "3082"]
[Result "0-1"]
[Round "3"]
[TimeControl "180+1"]
[Date "2023.11.07"]
[WhiteClock "0:00:01"]
[BlackClock "0:00:06"]
[Board "4"]

1. e4 {[%clk 0:02:59]}  e6 {[%clk 0:02:59]} 2. d4 {[%clk 0:02:58]}  d5 {[%clk 0:02:59]} 3. Nc3 {[%clk 0:02:58]}  Bb4 {[%clk 0:02:58]} 4. exd5 {[%clk 0:02:51]}  exd5 {[%clk 0:02:57]} 5. Bd3 {[%clk 0:02:52]}  Ne7 {[%clk 0:02:53]} 6. Qh5 {[%clk 0:02:46]}  Nbc6 {[%clk 0:02:41]} 7. Nf3 {[%clk 0:02:45]}  Be6 {[%clk 0:02:41]} 8. O-O {[%clk 0:02:38]}  Qd7 {[%clk 0:02:40]} 9. a3 {[%clk 0:02:06]}  Bxc3 {[%clk 0:02:39]} 10. bxc3 {[%clk 0:02:07]}  Bg4 {[%clk 0:02:30]} 11. Qh4 {[%clk 0:01:53]}  Bxf3 {[%clk 0:02:29]} 12. gxf3 {[%clk 0:01:53]}  O-O-O {[%clk 0:02:30]} 13. Re1 {[%clk 0:01:48]}  Nf5 {[%clk 0:02:26]} 14. Qg4 {[%clk 0:01:39]}  g6 {[%clk 0:02:25]} 15. Bg5 {[%clk 0:01:38]}  Rde8 {[%clk 0:02:24]} 16. Bf6 {[%clk 0:01:38]}  Rhg8 {[%clk 0:02:23]} 17. Kf1 {[%clk 0:01:21]}  Nd6 {[%clk 0:02:11]} 18. Qh4 {[%clk 0:01:13]}  h5 {[%clk 0:02:08]} 19. Qg3 {[%clk 0:01:03]}  Re6 {[%clk 0:01:54]} 20. Rxe6 {[%clk 0:00:56]}  fxe6 {[%clk 0:01:36]} 21. Re1 {[%clk 0:00:55]}  Qf7 {[%clk 0:01:36]} 22. Bg5 {[%clk 0:00:49]}  Kd7 {[%clk 0:01:33]} 23. h4 {[%clk 0:00:46]}  a6 {[%clk 0:01:19]} 24. Kg2 {[%clk 0:00:45]}  Ne7 {[%clk 0:01:07]} 25. Qe5 {[%clk 0:00:40]}  Nc6 {[%clk 0:01:00]} 26. Qg3 {[%clk 0:00:36]}  Nf5 {[%clk 0:00:58]} 27. Qf4 {[%clk 0:00:34]}  Re8 {[%clk 0:00:51]} 28. a4 {[%clk 0:00:24]}  Kc8 {[%clk 0:00:50]} 29. c4 {[%clk 0:00:18]}  dxc4 {[%clk 0:00:31]} 30. Bxc4 {[%clk 0:00:19]}  Ncxd4 {[%clk 0:00:31]} 31. c3 {[%clk 0:00:16]}  Nc6 {[%clk 0:00:31]} 32. Qe4 {[%clk 0:00:14]}  Kd7 {[%clk 0:00:15]} 33. Bf4 {[%clk 0:00:05]}  Nxh4+ {[%clk 0:00:15]} 34. Kf1 {[%clk 0:00:04]}  Nf5 {[%clk 0:00:08]} 35. Rb1 {[%clk 0:00:04]}  Rb8 {[%clk 0:00:04]} 36. Rd1+ {[%clk 0:00:02]}  Nd6 {[%clk 0:00:04]} 37. Bxd6 {[%clk 0:00:01]}  cxd6 {[%clk 0:00:04]} 38. Qd3 {[%clk 0:00:01]}  Qe7 {[%clk 0:00:04]} 39. Re1 {[%clk 0:00:01]}  d5 {[%clk 0:00:03]} 40. Bxd5 {[%clk 0:00:01]}  Qd6 {[%clk 0:00:03]} 41. Bxe6+ {[%clk 0:00:02]}  Kc7 {[%clk 0:00:03]} 42. Qxg6 {[%clk 0:00:02]}  Rf8 {[%clk 0:00:03]} 43. Qg7+ {[%clk 0:00:02]}  Kb8 {[%clk 0:00:04]} 44. Bc4 {[%clk 0:00:02]}  Rxf3 {[%clk 0:00:03]} 45. Qg8+ {[%clk 0:00:02]}  Ka7 {[%clk 0:00:04]} 46. Qd5 {[%clk 0:00:03]}  Qf6 {[%clk 0:00:03]} 47. Qc5+ {[%clk 0:00:03]}  Ka8 {[%clk 0:00:03]} 48. Re8+ {[%clk 0:00:03]}  Nb8 {[%clk 0:00:04]} 49. Qd4 {[%clk 0:00:02]}  Qxd4 {[%clk 0:00:03]} 50. cxd4 {[%clk 0:00:03]}  Rf4 {[%clk 0:00:04]} 51. Bd5 {[%clk 0:00:03]}  Rxd4 {[%clk 0:00:03]} 52. Bf3 {[%clk 0:00:03]}  Rxa4 {[%clk 0:00:04]} 53. Re7 {[%clk 0:00:04]}  Rb4 {[%clk 0:00:04]} 54. Bxh5 {[%clk 0:00:03]}  a5 {[%clk 0:00:04]} 55. Bf7 {[%clk 0:00:04]}  a4 {[%clk 0:00:04]} 56. Re3 {[%clk 0:00:04]}  Nc6 {[%clk 0:00:04]} 57. Bd5 {[%clk 0:00:03]}  Nd4 {[%clk 0:00:04]} 58. f4 {[%clk 0:00:04]}  Nf5 {[%clk 0:00:03]} 59. Rf3 {[%clk 0:00:04]}  Ka7 {[%clk 0:00:04]} 60. Be6 {[%clk 0:00:04]}  Nd4 {[%clk 0:00:04]} 61. Rf2 {[%clk 0:00:02]}  Nxe6 {[%clk 0:00:04]} 62. f5 {[%clk 0:00:03]}  Ng5 {[%clk 0:00:05]} 63. f6 {[%clk 0:00:03]}  Nf7 {[%clk 0:00:05]} 64. Kg2 {[%clk 0:00:02]}  Rb6 {[%clk 0:00:05]} 65. Ra2 {[%clk 0:00:02]}  Ra6 {[%clk 0:00:05]} 66. Rxa4 {[%clk 0:00:01]}  Rxa4 {[%clk 0:00:06]} 0-1


[Site "https://www.chess.com"]

[Event "Titled Tuesday Blitz November 07 Late 2023"]
[White "Le, Quang Liem"]
[Black "Korchmar, Vasiliy"]
[WhiteFideId "12401137"]
[BlackFideId "24131750"]
[WhiteElo "3077"]
[BlackElo "2751"]
[Result "1-0"]
[Round "3"]
[TimeControl "180+1"]
[Date "2023.11.07"]
[WhiteClock "0:02:08"]
[BlackClock "0:00:19"]
[Board "5"]

1. Nf3 {[%clk 0:03:00]}  d5 {[%clk 0:02:59]} 2. e3 {[%clk 0:03:01]}  Nf6 {[%clk 0:02:58]} 3. c4 {[%clk 0:03:01]}  e6 {[%clk 0:02:59]} 4. Nc3 {[%clk 0:03:01]}  Bd6 {[%clk 0:02:59]} 5. b3 {[%clk 0:03:01]}  O-O {[%clk 0:02:59]} 6. Bb2 {[%clk 0:03:02]}  c5 {[%clk 0:02:59]} 7. Rc1 {[%clk 0:02:51]}  Nc6 {[%clk 0:02:58]} 8. cxd5 {[%clk 0:02:52]}  exd5 {[%clk 0:02:59]} 9. Bb5 {[%clk 0:02:51]}  Bd7 {[%clk 0:02:31]} 10. O-O {[%clk 0:02:43]}  a6 {[%clk 0:02:27]} 11. Bxc6 {[%clk 0:02:41]}  Bxc6 {[%clk 0:02:28]} 12. d4 {[%clk 0:02:41]}  c4 {[%clk 0:02:06]} 13. Ne5 {[%clk 0:02:41]}  Rc8 {[%clk 0:02:00]} 14. bxc4 {[%clk 0:02:31]}  dxc4 {[%clk 0:02:00]} 15. Nxc6 {[%clk 0:02:31]}  Rxc6 {[%clk 0:02:00]} 16. e4 {[%clk 0:02:30]}  Bf4 {[%clk 0:01:55]} 17. Rc2 {[%clk 0:02:25]}  b5 {[%clk 0:01:55]} 18. Qf3 {[%clk 0:02:20]}  Qxd4 {[%clk 0:01:15]} 19. Nd5 {[%clk 0:02:07]}  c3 {[%clk 0:00:57]} 20. Ne7+ {[%clk 0:02:07]}  Kh8 {[%clk 0:00:57]} 21. Nxc6 {[%clk 0:02:08]}  Qxe4 {[%clk 0:00:19]} 22. Rxc3 {[%clk 0:02:08]} 1-0


[Site "https://www.chess.com"]

[Event "Titled Tuesday Blitz November 07 Late 2023"]
[White "Hambleton, Aman"]
[Black "Hakobyan, Aram"]
[WhiteFideId "2606577"]
[BlackFideId "13306677"]
[WhiteElo "2746"]
[BlackElo "3066"]
[Result "1-0"]
[Round "3"]
[TimeControl "180+1"]
[Date "2023.11.07"]
[WhiteClock "0:00:05"]
[BlackClock "0:00:00"]
[Board "6"]

1. d4 {[%clk 0:03:00]}  g6 {[%clk 0:02:59]} 2. Bf4 {[%clk 0:02:59]}  Bg7 {[%clk 0:02:58]} 3. e3 {[%clk 0:02:59]}  d6 {[%clk 0:02:57]} 4. h3 {[%clk 0:02:59]}  e5 {[%clk 0:02:57]} 5. Bh2 {[%clk 0:02:59]}  exd4 {[%clk 0:02:57]} 6. exd4 {[%clk 0:03:00]}  Nf6 {[%clk 0:02:52]} 7. Nf3 {[%clk 0:03:00]}  O-O {[%clk 0:02:53]} 8. Be2 {[%clk 0:03:01]}  b6 {[%clk 0:02:52]} 9. O-O {[%clk 0:03:01]}  Bb7 {[%clk 0:02:53]} 10. c3 {[%clk 0:03:01]}  Nc6 {[%clk 0:02:51]} 11. Nbd2 {[%clk 0:03:01]}  Re8 {[%clk 0:02:51]} 12. Bd3 {[%clk 0:03:00]}  Ne7 {[%clk 0:02:51]} 13. Re1 {[%clk 0:03:00]}  Bh6 {[%clk 0:02:40]} 14. a4 {[%clk 0:02:53]}  a6 {[%clk 0:02:39]} 15. Qb3 {[%clk 0:02:32]}  Qd7 {[%clk 0:02:25]} 16. c4 {[%clk 0:02:01]}  Nf5 {[%clk 0:01:21]} 17. Qc2 {[%clk 0:01:19]}  Bxd2 {[%clk 0:01:04]} 18. Bxf5 {[%clk 0:00:59]}  Qxf5 {[%clk 0:00:42]} 19. Qxf5 {[%clk 0:00:58]}  gxf5 {[%clk 0:00:43]} 20. Nxd2 {[%clk 0:00:58]}  Ne4 {[%clk 0:00:35]} 21. Nf1 {[%clk 0:00:28]}  Bc6 {[%clk 0:00:20]} 22. Ne3 {[%clk 0:00:18]}  Nd2 {[%clk 0:00:18]} 23. Nxf5 {[%clk 0:00:11]}  Bd7 {[%clk 0:00:07]} 24. Ne3 {[%clk 0:00:10]}  Nb3 {[%clk 0:00:07]} 25. Rad1 {[%clk 0:00:09]}  Bxa4 {[%clk 0:00:08]} 26. Bf4 {[%clk 0:00:02]}  Bc6 {[%clk 0:00:02]} 27. Nf5 {[%clk 0:00:02]}  Rxe1+ {[%clk 0:00:02]} 28. Rxe1 {[%clk 0:00:03]}  Re8 {[%clk 0:00:02]} 29. Re3 {[%clk 0:00:02]}  Rxe3 {[%clk 0:00:02]} 30. Bxe3 {[%clk 0:00:02]}  Bd7 {[%clk 0:00:02]} 31. Ng3 {[%clk 0:00:02]}  Na5 {[%clk 0:00:02]} 32. c5 {[%clk 0:00:02]}  bxc5 {[%clk 0:00:03]} 33. dxc5 {[%clk 0:00:03]}  d5 {[%clk 0:00:03]} 34. Ne2 {[%clk 0:00:02]}  Nc4 {[%clk 0:00:03]} 35. b3 {[%clk 0:00:02]}  Na5 {[%clk 0:00:02]} 36. b4 {[%clk 0:00:01]}  Nc6 {[%clk 0:00:03]} 37. Bd2 {[%clk 0:00:01]}  Bf5 {[%clk 0:00:03]} 38. Bc3 {[%clk 0:00:01]}  Bd3 {[%clk 0:00:02]} 39. Nd4 {[%clk 0:00:02]}  Ne5 {[%clk 0:00:02]} 40. f3 {[%clk 0:00:03]}  Bc4 {[%clk 0:00:02]} 41. Kf2 {[%clk 0:00:03]}  Nd3+ {[%clk 0:00:02]} 42. Ke3 {[%clk 0:00:03]}  Kf8 {[%clk 0:00:02]} 43. Nf5 {[%clk 0:00:03]}  Nc1 {[%clk 0:00:02]} 44. g4 {[%clk 0:00:02]}  Nb3 {[%clk 0:00:02]} 45. Nd4 {[%clk 0:00:02]}  Nxd4 {[%clk 0:00:02]} 46. Bxd4 {[%clk 0:00:03]}  Ke7 {[%clk 0:00:03]} 47. f4 {[%clk 0:00:03]}  c6 {[%clk 0:00:03]} 48. f5 {[%clk 0:00:03]}  Bf1 {[%clk 0:00:04]} 49. h4 {[%clk 0:00:03]}  Bh3 {[%clk 0:00:05]} 50. Kf4 {[%clk 0:00:04]}  f6 {[%clk 0:00:04]} 51. Kg3 {[%clk 0:00:04]}  Bf1 {[%clk 0:00:05]} 52. g5 {[%clk 0:00:04]}  fxg5 {[%clk 0:00:06]} 53. hxg5 {[%clk 0:00:05]}  Bd3 {[%clk 0:00:06]} 54. Kf4 {[%clk 0:00:05]}  Bc2 {[%clk 0:00:06]} 55. Ke5 {[%clk 0:00:05]}  Bd3 {[%clk 0:00:06]} 56. Be3 {[%clk 0:00:06]}  Bc2 {[%clk 0:00:06]} 57. Bf2 {[%clk 0:00:06]}  Bb1 {[%clk 0:00:06]} 58. Be1 {[%clk 0:00:07]}  Bc2 {[%clk 0:00:04]} 59. Bh4 {[%clk 0:00:07]}  Kd7 {[%clk 0:00:02]} 60. Bf2 {[%clk 0:00:05]}  Ke7 {[%clk 0:00:02]} 61. Be1 {[%clk 0:00:05]}  Bb1 {[%clk 0:00:02]} 62. Bh4 {[%clk 0:00:06]}  Kd7 {[%clk 0:00:02]} 63. Kf6 {[%clk 0:00:07]}  d4 {[%clk 0:00:02]} 64. Bf2 {[%clk 0:00:05]}  d3 {[%clk 0:00:02]} 65. Be3 {[%clk 0:00:06]}  Ba2 {[%clk 0:00:02]} 66. Kg7 {[%clk 0:00:05]}  Bb1 {[%clk 0:00:00]} 67. f6 {[%clk 0:00:05]} 1-0


[Site "https://www.chess.com"]

[Event "Titled Tuesday Blitz November 07 Late 2023"]
[White "Pranav, V"]
[Black "Rosen, Eric"]
[WhiteFideId "25060783"]
[BlackFideId "2032562"]
[WhiteElo "3065"]
[BlackElo "2744"]
[Result "1-0"]
[Round "3"]
[TimeControl "180+1"]
[Date "2023.11.07"]
[WhiteClock "0:00:29"]
[BlackClock "0:00:01"]
[Board "7"]

1. e4 {[%clk 0:03:00]}  c5 {[%clk 0:02:59]} 2. Nf3 {[%clk 0:03:01]}  e6 {[%clk 0:03:00]} 3. d4 {[%clk 0:03:01]}  cxd4 {[%clk 0:03:01]} 4. Nxd4 {[%clk 0:03:02]}  Nc6 {[%clk 0:03:01]} 5. Nc3 {[%clk 0:03:02]}  Qc7 {[%clk 0:03:02]} 6. Be3 {[%clk 0:03:02]}  a6 {[%clk 0:03:02]} 7. Qf3 {[%clk 0:03:03]}  Nf6 {[%clk 0:03:02]} 8. Qg3 {[%clk 0:03:01]}  Ne5 {[%clk 0:02:55]} 9. O-O-O {[%clk 0:02:54]}  b5 {[%clk 0:02:55]} 10. Bf4 {[%clk 0:02:33]}  d6 {[%clk 0:02:44]} 11. Ndxb5 {[%clk 0:02:32]}  axb5 {[%clk 0:02:41]} 12. Nxb5 {[%clk 0:02:33]}  Qb8 {[%clk 0:02:37]} 13. Bxe5 {[%clk 0:02:30]}  dxe5 {[%clk 0:02:29]} 14. Qc3 {[%clk 0:02:30]}  Be7 {[%clk 0:01:38]} 15. Nc7+ {[%clk 0:02:30]}  Kf8 {[%clk 0:01:39]} 16. Nxa8 {[%clk 0:02:30]}  Qxa8 {[%clk 0:01:39]} 17. f3 {[%clk 0:02:31]}  g6 {[%clk 0:01:11]} 18. Bc4 {[%clk 0:02:26]}  Qb8 {[%clk 0:00:47]} 19. Rhe1 {[%clk 0:02:22]}  Kg7 {[%clk 0:00:44]} 20. a3 {[%clk 0:02:19]}  Bb7 {[%clk 0:00:40]} 21. g4 {[%clk 0:01:57]}  Rc8 {[%clk 0:00:38]} 22. Qb3 {[%clk 0:01:54]}  Qc7 {[%clk 0:00:37]} 23. Bb5 {[%clk 0:01:48]}  Bc5 {[%clk 0:00:27]} 24. Kb1 {[%clk 0:01:18]}  Qb6 {[%clk 0:00:22]} 25. Rd3 {[%clk 0:01:09]}  Bd4 {[%clk 0:00:21]} 26. Red1 {[%clk 0:01:02]}  Rb8 {[%clk 0:00:15]} 27. a4 {[%clk 0:01:01]}  Qc7 {[%clk 0:00:10]} 28. g5 {[%clk 0:00:56]}  Nh5 {[%clk 0:00:10]} 29. c3 {[%clk 0:00:56]}  Bc5 {[%clk 0:00:09]} 30. Rd7 {[%clk 0:00:55]}  Qb6 {[%clk 0:00:10]} 31. a5 {[%clk 0:00:35]}  Qxa5 {[%clk 0:00:05]} 32. Qxe6 {[%clk 0:00:32]}  Rf8 {[%clk 0:00:01]} 33. Rxb7 {[%clk 0:00:28]}  Qxb5 {[%clk 0:00:02]} 34. Qxe5+ {[%clk 0:00:28]}  Kg8 {[%clk 0:00:01]} 35. Rxb5 {[%clk 0:00:28]}  Bf2 {[%clk 0:00:01]} 36. Rb8 {[%clk 0:00:28]}  Ng7 {[%clk 0:00:01]} 37. Rxf8+ {[%clk 0:00:28]}  Kxf8 {[%clk 0:00:01]} 38. Rd8+ {[%clk 0:00:29]}  Ne8 {[%clk 0:00:01]} 39. Rxe8# {[%clk 0:00:29]} 1-0


[Site "https://www.chess.com"]

[Event "Titled Tuesday Blitz November 07 Late 2023"]
[White "GaiozNigalidze"]
[Black "Martinez Alcantara, Jose Eduardo"]
[BlackFideId "3805662"]
[WhiteElo "2727"]
[BlackElo "3041"]
[Result "0-1"]
[Round "3"]
[TimeControl "180+1"]
[Date "2023.11.07"]
[WhiteClock "0:00:40"]
[BlackClock "0:01:59"]
[Board "10"]

1. d4 {[%clk 0:03:00]}  Nf6 {[%clk 0:03:00]} 2. Nf3 {[%clk 0:03:01]}  e6 {[%clk 0:03:00]} 3. g3 {[%clk 0:03:01]}  b5 {[%clk 0:02:59]} 4. Bg2 {[%clk 0:03:01]}  Bb7 {[%clk 0:02:59]} 5. O-O {[%clk 0:03:01]}  Be7 {[%clk 0:03:00]} 6. c3 {[%clk 0:03:01]}  a5 {[%clk 0:02:53]} 7. a4 {[%clk 0:02:59]}  b4 {[%clk 0:02:53]} 8. Bg5 {[%clk 0:02:59]}  Na6 {[%clk 0:02:50]} 9. Nbd2 {[%clk 0:02:58]}  d5 {[%clk 0:02:48]} 10. Ne5 {[%clk 0:02:54]}  c5 {[%clk 0:02:44]} 11. e3 {[%clk 0:02:50]}  O-O {[%clk 0:02:43]} 12. h4 {[%clk 0:02:39]}  Rc8 {[%clk 0:02:42]} 13. Rc1 {[%clk 0:02:38]}  Nd7 {[%clk 0:02:36]} 14. Bxe7 {[%clk 0:02:35]}  Qxe7 {[%clk 0:02:37]} 15. Nec4 {[%clk 0:02:32]}  bxc3 {[%clk 0:02:29]} 16. bxc3 {[%clk 0:02:30]}  cxd4 {[%clk 0:02:29]} 17. cxd4 {[%clk 0:02:25]}  Nb4 {[%clk 0:02:27]} 18. Nxa5 {[%clk 0:01:46]}  Rxc1 {[%clk 0:02:27]} 19. Qxc1 {[%clk 0:01:46]}  Ba6 {[%clk 0:02:27]} 20. Rd1 {[%clk 0:01:43]}  Be2 {[%clk 0:02:27]} 21. Re1 {[%clk 0:01:38]}  Nd3 {[%clk 0:02:27]} 22. Qa1 {[%clk 0:01:31]}  Nxe1 {[%clk 0:02:26]} 23. Qxe1 {[%clk 0:01:31]}  Ra8 {[%clk 0:02:11]} 24. Nc6 {[%clk 0:01:09]}  Qd6 {[%clk 0:02:08]} 25. Ne5 {[%clk 0:01:06]}  Nxe5 {[%clk 0:02:01]} 26. dxe5 {[%clk 0:01:05]}  Qa6 {[%clk 0:02:02]} 27. Nb1 {[%clk 0:00:47]}  Bd3 {[%clk 0:01:59]} 28. Nc3 {[%clk 0:00:40]}  Rc8 {[%clk 0:01:59]} 0-1


[Site "https://www.chess.com"]

[Event "Titled Tuesday Blitz November 07 Late 2023"]
[White "FrenchHarvey"]
[Black "Oparin, Grigoriy"]
[BlackFideId "24125890"]
[WhiteElo "2718"]
[BlackElo "3003"]
[Result "0-1"]
[Round "3"]
[TimeControl "180+1"]
[Date "2023.11.07"]
[WhiteClock "0:00:05"]
[BlackClock "0:00:48"]
[Board "13"]

1. e4 {[%clk 0:03:00]}  c6 {[%clk 0:03:00]} 2. Nc3 {[%clk 0:03:00]}  d5 {[%clk 0:03:00]} 3. Nf3 {[%clk 0:03:00]}  Bg4 {[%clk 0:03:00]} 4. h3 {[%clk 0:03:00]}  Bxf3 {[%clk 0:02:59]} 5. Qxf3 {[%clk 0:03:01]}  e6 {[%clk 0:02:59]} 6. Be2 {[%clk 0:03:02]}  Nf6 {[%clk 0:02:45]} 7. O-O {[%clk 0:03:01]}  d4 {[%clk 0:02:45]} 8. Nb1 {[%clk 0:03:00]}  e5 {[%clk 0:02:44]} 9. d3 {[%clk 0:03:00]}  c5 {[%clk 0:02:44]} 10. Qg3 {[%clk 0:03:00]}  Nc6 {[%clk 0:02:44]} 11. f4 {[%clk 0:03:00]}  Nd7 {[%clk 0:02:34]} 12. Bg4 {[%clk 0:02:57]}  f6 {[%clk 0:02:29]} 13. Na3 {[%clk 0:02:46]}  Qe7 {[%clk 0:02:28]} 14. Nc4 {[%clk 0:02:34]}  b5 {[%clk 0:02:26]} 15. Na3 {[%clk 0:01:54]}  a6 {[%clk 0:02:26]} 16. Bd2 {[%clk 0:01:50]}  O-O-O {[%clk 0:02:14]} 17. c4 {[%clk 0:01:32]}  dxc3 {[%clk 0:02:12]} 18. bxc3 {[%clk 0:01:32]}  Kb7 {[%clk 0:02:12]} 19. Rab1 {[%clk 0:01:30]}  Nb6 {[%clk 0:02:12]} 20. Nxb5 {[%clk 0:01:20]}  axb5 {[%clk 0:02:10]} 21. Rxb5 {[%clk 0:01:21]}  Na7 {[%clk 0:02:07]} 22. Rb2 {[%clk 0:01:19]}  Rd6 {[%clk 0:02:03]} 23. Rfb1 {[%clk 0:01:17]}  h5 {[%clk 0:01:53]} 24. d4 {[%clk 0:01:08]}  hxg4 {[%clk 0:01:33]} 25. dxc5 {[%clk 0:01:08]}  Rc6 {[%clk 0:01:26]} 26. Rxb6+ {[%clk 0:01:06]}  Rxb6 {[%clk 0:01:25]} 27. Rxb6+ {[%clk 0:01:07]}  Ka8 {[%clk 0:01:26]} 28. Be3 {[%clk 0:01:05]}  gxh3 {[%clk 0:01:23]} 29. c6 {[%clk 0:01:03]}  Qd6 {[%clk 0:01:04]} 30. gxh3 {[%clk 0:00:35]}  exf4 {[%clk 0:00:54]} 31. Bxf4 {[%clk 0:00:25]}  Qd1+ {[%clk 0:00:54]} 32. Kg2 {[%clk 0:00:23]}  Qe2+ {[%clk 0:00:52]} 33. Kh1 {[%clk 0:00:21]}  Qf1+ {[%clk 0:00:48]} 34. Kh2 {[%clk 0:00:21]}  Bc5 {[%clk 0:00:48]} 35. Rb2 {[%clk 0:00:05]}  Rxh3+ {[%clk 0:00:48]} 0-1


[Site "https://www.chess.com"]

[Event "Titled Tuesday Blitz November 07 Late 2023"]
[White "Deac, Bogdan-Daniel"]
[Black "Hasangatin, Ramil"]
[WhiteFideId "1226380"]
[BlackFideId "4122160"]
[WhiteElo "2979"]
[BlackElo "2701"]
[Result "1-0"]
[Round "3"]
[TimeControl "180+1"]
[Date "2023.11.07"]
[WhiteClock "0:00:04"]
[BlackClock "0:00:00"]
[Board "14"]

1. e4 {[%clk 0:03:00]}  d5 {[%clk 0:02:59]} 2. exd5 {[%clk 0:03:00]}  Qxd5 {[%clk 0:03:00]} 3. Nc3 {[%clk 0:03:00]}  Qd6 {[%clk 0:03:01]} 4. d4 {[%clk 0:03:01]}  Nf6 {[%clk 0:03:01]} 5. Nf3 {[%clk 0:03:01]}  c6 {[%clk 0:03:01]} 6. Ne5 {[%clk 0:03:01]}  Nbd7 {[%clk 0:03:00]} 7. Nc4 {[%clk 0:03:01]}  Qc7 {[%clk 0:03:01]} 8. Qf3 {[%clk 0:03:02]}  Nb6 {[%clk 0:03:01]} 9. h3 {[%clk 0:02:55]}  g6 {[%clk 0:02:52]} 10. Bf4 {[%clk 0:02:43]}  Qd8 {[%clk 0:02:52]} 11. Rd1 {[%clk 0:02:42]}  Bg7 {[%clk 0:02:46]} 12. Ne5 {[%clk 0:02:41]}  O-O {[%clk 0:02:43]} 13. Be2 {[%clk 0:02:41]}  Nbd5 {[%clk 0:02:40]} 14. Bd2 {[%clk 0:02:31]}  Nxc3 {[%clk 0:02:38]} 15. Bxc3 {[%clk 0:02:29]}  Qd5 {[%clk 0:02:39]} 16. Qxd5 {[%clk 0:02:27]}  Nxd5 {[%clk 0:02:24]} 17. Bd2 {[%clk 0:01:59]}  Bf5 {[%clk 0:02:24]} 18. c4 {[%clk 0:01:53]}  Nb6 {[%clk 0:02:19]} 19. b3 {[%clk 0:01:49]}  Nd7 {[%clk 0:02:00]} 20. f4 {[%clk 0:01:26]}  Nxe5 {[%clk 0:02:00]} 21. dxe5 {[%clk 0:01:15]}  Bc2 {[%clk 0:01:53]} 22. Rc1 {[%clk 0:01:15]}  Be4 {[%clk 0:01:53]} 23. O-O {[%clk 0:01:15]}  Rfd8 {[%clk 0:01:53]} 24. Be3 {[%clk 0:01:06]}  Bd3 {[%clk 0:01:53]} 25. Bxd3 {[%clk 0:00:56]}  Rxd3 {[%clk 0:01:54]} 26. Kf2 {[%clk 0:00:56]}  b6 {[%clk 0:01:49]} 27. Rfd1 {[%clk 0:00:46]}  Rad8 {[%clk 0:01:48]} 28. Rxd3 {[%clk 0:00:46]}  Rxd3 {[%clk 0:01:48]} 29. Ke2 {[%clk 0:00:46]}  Rd7 {[%clk 0:01:48]} 30. a4 {[%clk 0:00:45]}  f6 {[%clk 0:01:35]} 31. c5 {[%clk 0:00:35]}  bxc5 {[%clk 0:01:01]} 32. Rxc5 {[%clk 0:00:33]}  fxe5 {[%clk 0:01:00]} 33. fxe5 {[%clk 0:00:33]}  Kf7 {[%clk 0:00:38]} 34. b4 {[%clk 0:00:23]}  Rb7 {[%clk 0:00:33]} 35. Bd2 {[%clk 0:00:22]}  Ke6 {[%clk 0:00:28]} 36. Bc3 {[%clk 0:00:08]}  Rb6 {[%clk 0:00:15]} 37. a5 {[%clk 0:00:04]}  Rb7 {[%clk 0:00:11]} 38. Rxc6+ {[%clk 0:00:03]}  Kd5 {[%clk 0:00:12]} 39. Rc5+ {[%clk 0:00:04]}  Ke4 {[%clk 0:00:12]} 40. g4 {[%clk 0:00:04]}  g5 {[%clk 0:00:11]} 41. a6 {[%clk 0:00:04]}  Rb6 {[%clk 0:00:08]} 42. b5 {[%clk 0:00:04]}  Re6 {[%clk 0:00:07]} 43. Rc7 {[%clk 0:00:03]}  Bxe5 {[%clk 0:00:06]} 44. Bxe5 {[%clk 0:00:03]}  Rxe5 {[%clk 0:00:06]} 45. Rxa7 {[%clk 0:00:04]}  Rxb5 {[%clk 0:00:06]} 46. Rxe7+ {[%clk 0:00:04]}  Kf4 {[%clk 0:00:07]} 47. Rxh7 {[%clk 0:00:03]}  Ra5 {[%clk 0:00:05]} 48. a7 {[%clk 0:00:03]}  Ra3 {[%clk 0:00:04]} 49. Kd2 {[%clk 0:00:03]}  Ke4 {[%clk 0:00:03]} 50. Kc2 {[%clk 0:00:03]}  Kd4 {[%clk 0:00:03]} 51. Rg7 {[%clk 0:00:03]}  Kc4 {[%clk 0:00:02]} 52. Rxg5 {[%clk 0:00:03]}  Ra2+ {[%clk 0:00:03]} 53. Kd1 {[%clk 0:00:03]}  Rxa7 {[%clk 0:00:04]} 54. Rh5 {[%clk 0:00:03]}  Kd4 {[%clk 0:00:03]} 55. Ke2 {[%clk 0:00:03]}  Ke4 {[%clk 0:00:04]} 56. Kf2 {[%clk 0:00:03]}  Ra3 {[%clk 0:00:02]} 57. Kg2 {[%clk 0:00:03]}  Kf4 {[%clk 0:00:02]} 58. Rf5+ {[%clk 0:00:04]}  Ke4 {[%clk 0:00:03]} 59. Rf2 {[%clk 0:00:04]}  Ra1 {[%clk 0:00:00]} 60. Rf3 {[%clk 0:00:04]} 1-0


[Site "https://www.chess.com"]

[Event "Titled Tuesday Blitz November 07 Late 2023"]
[White "Kavutskiy, Konstantin"]
[Black "Sarana, Alexey"]
[WhiteFideId "2026384"]
[BlackFideId "24133795"]
[WhiteElo "2691"]
[BlackElo "2967"]
[Result "0-1"]
[Round "3"]
[TimeControl "180+1"]
[Date "2023.11.07"]
[WhiteClock "0:00:50"]
[BlackClock "0:01:17"]
[Board "17"]

1. d4 {[%clk 0:03:00]}  Nf6 {[%clk 0:02:59]} 2. c4 {[%clk 0:03:00]}  e6 {[%clk 0:03:00]} 3. Nf3 {[%clk 0:03:01]}  d5 {[%clk 0:03:00]} 4. Nc3 {[%clk 0:03:00]}  Nbd7 {[%clk 0:03:00]} 5. Bf4 {[%clk 0:03:01]}  Bb4 {[%clk 0:03:00]} 6. cxd5 {[%clk 0:02:57]}  Nxd5 {[%clk 0:03:00]} 7. Bd2 {[%clk 0:02:53]}  N5f6 {[%clk 0:03:01]} 8. a3 {[%clk 0:02:50]}  Bxc3 {[%clk 0:03:01]} 9. Bxc3 {[%clk 0:02:51]}  b6 {[%clk 0:03:01]} 10. e3 {[%clk 0:02:50]}  Bb7 {[%clk 0:03:02]} 11. Be2 {[%clk 0:02:50]}  O-O {[%clk 0:03:02]} 12. O-O {[%clk 0:02:51]}  c5 {[%clk 0:03:03]} 13. dxc5 {[%clk 0:02:50]}  Nxc5 {[%clk 0:03:04]} 14. b4 {[%clk 0:02:43]}  Nce4 {[%clk 0:03:03]} 15. Bb2 {[%clk 0:02:43]}  Qe7 {[%clk 0:03:03]} 16. Rc1 {[%clk 0:02:39]}  Rfd8 {[%clk 0:03:02]} 17. Qb3 {[%clk 0:02:37]}  Bd5 {[%clk 0:03:01]} 18. Qa4 {[%clk 0:02:35]}  Ne8 {[%clk 0:02:58]} 19. Rfd1 {[%clk 0:02:31]}  N8d6 {[%clk 0:02:58]} 20. Nd4 {[%clk 0:02:24]}  Qh4 {[%clk 0:02:22]} 21. g3 {[%clk 0:02:12]}  Qh3 {[%clk 0:02:22]} 22. Bf1 {[%clk 0:02:05]}  Qh5 {[%clk 0:02:20]} 23. Bg2 {[%clk 0:02:02]}  Ng5 {[%clk 0:02:18]} 24. h4 {[%clk 0:01:57]}  Bxg2 {[%clk 0:02:02]} 25. Kxg2 {[%clk 0:01:58]}  Nge4 {[%clk 0:02:01]} 26. Nc6 {[%clk 0:01:49]}  Re8 {[%clk 0:02:01]} 27. f3 {[%clk 0:01:42]}  Nxg3 {[%clk 0:01:59]} 28. Rxd6 {[%clk 0:01:39]}  Nf5 {[%clk 0:01:53]} 29. Rd4 {[%clk 0:01:32]}  Nxd4 {[%clk 0:01:35]} 30. Nxd4 {[%clk 0:01:28]}  Qxh4 {[%clk 0:01:33]} 31. Qb5 {[%clk 0:01:23]}  e5 {[%clk 0:01:30]} 32. Ne2 {[%clk 0:01:11]}  Re6 {[%clk 0:01:30]} 33. Ng3 {[%clk 0:01:07]}  Rd8 {[%clk 0:01:19]} 34. Rc2 {[%clk 0:01:00]}  Rh6 {[%clk 0:01:17]} 35. Qxe5 {[%clk 0:00:51]}  Qh2+ {[%clk 0:01:17]} 36. Kf1 {[%clk 0:00:50]}  Rd1# {[%clk 0:01:17]} 0-1


[Site "https://www.chess.com"]